Cogmind - Beta 13 @@@ ROGUE MODE // 2024.05.16 @ 22:36:23 Player: A Moose Result: Destroyed by Y-72 Warden with Quantum Rifle Performance ------------- Evolutions (7) 3500 Regions Visited (22) 4400 Robots Destroyed (122) 610 Value Destroyed (4328) 4328 Prototype IDs (44) 880 Alien Tech Used (2) 400 Bonus (2351) 2351 TOTAL SCORE: 16469 Bonus ------- High Alert Combat Kills 451 Met Data Miner 300 Met Imprinter 300 Met Zhirov 300 Met Warlord at Base 500 MAIN.C Attacked Warlord 500 Cogmind --------- Core Integrity 0/1300 Matter 300/300 Energy 99/100 System Corruption 5% Temperature Cool (9) Movement Core (50) Location -3/Research Parts ------- > --- POWER (3) -------- (None) > --- PROPULSION (4) --- (None) > --- UTILITY (11) ----- Improved Signal Interpreter Improved Targeting Computer Makeshift Hacking Suite > --- WEAPON (3) ------- (None) > --- INVENTORY (5) ---- Enhanced Armored Medium Treads Experimental Matter Compressor (93) Enhanced Optical Array Advanced Target Analyzer Vibroblade Peak State ------------ > --- POWER ------------ Light Particle Reactor > --- PROPULSION ------- Electron Diverter Electron Diverter Impulse Thruster Array > --- UTILITY ---------- Advanced Heat Sink Large Storage Unit Advanced Gravity Neutralizer Improved Signal Interpreter Improved Targeting Computer Core Analyzer Improved Armor Integrity Analyzer Quantum Capacitor Hacking Suite Makeshift Hacking Suite > --- WEAPON ----------- Quantum Rifle Smartbomb Launcher > --- INVENTORY -------- Vortex Chain Reactor Enhanced Armored Medium Treads Advanced VSS Leg Advanced VSS Leg Advanced VSS Leg Biometal Leg Experimental Matter Compressor Enhanced Optical Array Advanced Target Analyzer Thermal Barrier Improved Force Field Dispersion Rifle [Rating: 123] Favorites ----------- Power Light Angular Momentum Engine Engine Light Angular Momentum Engine Power Core Neutrino Core Reactor Micro Antimatter Reactor Propulsion Wheel Leg Carbon-fiber Leg Wheel Wheel Flight Unit Cooled Nuclear Pulse Thruster Utility Hacking Suite Device Microactuators Storage Medium Storage Unit Processor Improved Signal Interpreter Hackware Hacking Suite Protection Hardened Medium Armor Plating Weapon Phasing Sabre Energy Gun Gatling Laser Energy Cannon Cooled Plasma Cannon Ballistic Gun Heavy Battle Rifle Ballistic Cannon Gauss Cannon Launcher Thermoblaster Special Weapon Enhanced Flamer Slashing Weapon Phasing Sabre Build | -11 -10 -10 -9 -9 -7 -6 -6 -6 -6 -6 -5 -5 -5 -5 -5 -4 -4 -4 -4 -4 -3 -3 ------- Run | Yrd Mat Min Mat Min Zio Pro Fac Low Low Dat Pro Fac Upp Upp Zhi Pro Fac Upp Upp War Pro Res Slots Evolved 14 | . . . 2 . . . 6 . . . . 2 . . . . 2 . . . . 2 Power 2 | . . . . . . . 1 . . . . . . . . . . . . . . 1 Propulsion 2 | . . . . . . . . . . . . . . . . . 2 . . . . . Utility 9 | . . . 2 . . . 4 . . . . 2 . . . . . . . . . 1 Weapon 1 | . . . . . . . 1 . . . . . . . . . . . . . . . Parts Attached 174 | 6 2 1 17 . 6 1 13 . 7 . 8 30 3 6 13 4 7 3 4 17 1 25 Power 24 | 1 . . 2 . 1 . 3 . 3 . 1 5 1 . 2 . . 1 . 1 . 3 Engine 11 | 1 . . 1 . . . 3 . 2 . . 3 1 . . . . . . . . . Core 7 | . . . 1 . 1 . . . 1 . 1 2 . . . . . . . . . 1 Reactor 6 | . . . . . . . . . . . . . . . 2 . . 1 . 1 . 2 Propulsion 37 | 2 1 . 4 . . . 2 . 3 . 2 4 1 1 2 2 2 . 1 4 . 6 Treads . | . . . . . . . . . . . . . . . . . . . . . . . Leg 6 | . . . . . . . . . . . 1 . . . . . . . . 1 . 4 Wheel 20 | 2 1 . 4 . . . 2 . 3 . 1 4 1 1 1 . . . . . . . Hover . | . . . . . . . . . . . . . . . . . . . . . . . Flight 11 | . . . . . . . . . . . . . . . 1 2 2 . 1 3 . 2 Utility 73 | 1 1 1 8 . 1 . 6 . 1 . 5 14 . 2 6 2 5 1 2 9 . 8 Device 36 | . . . 4 . . . 3 . . . 2 5 . . 4 . 4 1 . 7 . 6 Storage 5 | 1 1 . . . . . . . . . . 1 . . . . . . . . . 2 Processor 9 | . . . . . . . . . . . 1 4 . . . . 1 . 1 2 . . Hackware 7 | . . . 1 . . . 2 . . . 1 1 . . 1 . . . 1 . . . Protection 16 | . . 1 3 . 1 . 1 . 1 . 1 3 . 2 1 2 . . . . . . Artifact . | . . . . . . . . . . . . . . . . . . . . . . . Weapon 40 | 2 . . 3 . 4 1 2 . . . . 7 1 3 3 . . 1 1 3 1 8 Energy Gun 12 | 2 . . 1 . 2 . 1 . . . . . 1 . 1 . . . . 1 . 3 Energy Cannon 8 | . . . . . . . 1 . . . . 4 . 1 . . . . 1 1 . . Ballistic Gun 4 | . . . 1 . 2 . . . . . . . . . . . . . . 1 . . Ballistic Cannon 7 | . . . 1 . . . . . . . . 2 . 2 2 . . . . . . . Launcher 6 | . . . . . . . . . . . . . . . . . . 1 . . . 5 Special Weapon 1 | . . . . . . . . . . . . . . . . . . . . . 1 . Impact Weapon . | . . . . . . . . . . . . . . . . . . . . . . . Slashing Weapon 2 | . . . . . . 1 . . . . . 1 . . . . . . . . . . Piercing Weapon . | . . . . . . . . . . . . . . . . . . . . . . . Special Melee Weapon . | . . . . . . . . . . . . . . . . . . . . . . . Unidentified Prototypes 15 | . . . . . . . . . . . . . . . 5 1 . . . 7 . 2 Parts Lost 69 | . 1 . 4 . . 1 . . 3 . 3 20 1 3 . 10 . 1 . 1 1 20 Power 11 | . . . . . . . . . 1 . 1 4 . . . 1 . 1 . . . 3 Propulsion 16 | . 1 . 3 . . . . . 2 . 1 3 . 1 . 2 . . . . . 3 Utility 25 | . . . . . . . . . . . 1 8 . 2 . 4 . . . 1 . 9 Weapon 17 | . . . 1 . . 1 . . . . . 5 1 . . 3 . . . . 1 5 Highest Loss Streak 10 | . 1 . 2 . . 1 . . 3 . 3 7 1 3 . 10 . 1 . 1 1 7 To Critical Strikes 2 | . . . . . . . . . . . . . . . . . . . . . . 2 Average Slot Usage (%) 91 | . 82 100 92 100 100 99 99 100 97 100 98 87 91 98 82 69 58 65 71 87 92 71 Engine 5 | . 14 14 5 11 1 . 6 13 11 6 3 3 6 11 7 1 . . . 1 . . Core 3 | . . . 5 . 9 11 5 . . 6 8 5 . . . . . . . . . . Wheel 12 | . 25 28 19 22 22 22 13 13 11 13 9 7 11 11 11 5 . . . . . . Flight 2 | . . . . . . . . . . . . . . . . 4 21 21 21 20 21 11 Device 14 | . . . 9 11 11 11 19 20 20 20 16 15 23 17 17 8 6 12 15 13 10 11 Storage 6 | . 14 14 11 11 11 11 6 6 6 6 6 6 5 5 5 2 . . . . . 2 Processor 5 | . . . . . . . . . . . 5 5 11 11 11 11 14 15 18 22 26 19 Hackware 12 | . . . . 11 11 11 17 20 20 20 13 15 11 11 13 13 10 10 10 15 15 10 Protection 7 | . . 14 18 11 11 11 8 6 6 6 9 5 5 10 7 2 . . . . . . Energy Gun 6 | . 28 28 11 . 9 11 12 6 6 6 6 1 3 5 . 2 . . . 5 5 3 Energy Cannon 2 | . . . . . . . . 6 6 6 6 4 2 . . . . . . . . . Ballistic Gun 2 | . . . 5 11 11 6 . . . . . . . . . . . . . . 5 2 Ballistic Cannon 1 | . . . 4 11 1 . . . . . . 2 5 9 . 5 . . . . . . Slashing Weapon 2 | . . . . . . 3 6 6 6 6 6 4 . . . . . . . . . . Naked Turns . | . . . . . . . . . . . . . . . . . . . . . . . Heaviest Build 83 | 13 18 21 35 32 42 42 65 56 61 61 73 80 61 72 72 70 15 20 20 28 27 83 Greatest Support 82 | 26 26 26 26 20 20 20 20 20 22 22 22 32 32 26 26 20 24 24 25 28 28 82 Greatest Overweight (x) 15 | . 1 . 1 1 2 2 3 2 15 2 6 6 1 2 3 7 . . . . . 1 Average Overweight (x) 1 | . . . . 1 1 1 2 2 2 2 3 3 1 2 1 . . . . . . . Largest Inventory Capacity 15 | 8 10 10 10 10 10 10 10 10 10 10 10 10 10 10 10 10 5 5 5 5 5 15 Average Capacity 9 | 6 8 10 10 10 10 10 10 10 10 10 10 10 10 10 10 7 5 5 5 5 5 10 Most Carried 15 | 5 8 8 10 10 10 10 10 10 10 10 10 10 10 10 10 10 5 5 5 5 5 15 Average Carried 8 | 2 5 7 9 10 9 9 8 10 9 10 9 9 9 9 9 7 4 4 5 4 5 8 Final Capacity 10 | 8 10 10 10 10 10 10 10 10 10 10 10 10 10 10 10 5 5 5 5 5 5 5 Final Carried 10 | 2 8 8 10 10 10 10 10 10 10 10 10 10 10 10 10 5 5 5 5 5 5 5 Class Distribution -------------------- 38% | Hacker-Mutant 27% | Mutant 15% | Hacker-Sprinter 7% | Scavenger-Mutant 5% | Scavenger-Tank Dominant Class ---------------- Mutant | -10/Materials Mutant | -10/Mines Mutant | -9/Materials Mutant | -9/Mines Mutant | -7/Zion Mutant | -6/Proximity Caves Hacker-Mutant | -6/Factory Hacker-Mutant | -6/Lower Caves Hacker-Mutant | -6/Lower Caves Hacker-Mutant | -6/Data Miner Hacker-Mutant | -5/Proximity Caves Hacker-Mutant | -5/Factory Scavenger-Mutant | -5/Upper Caves Scavenger-Tank | -5/Upper Caves Hacker-Mutant | -5/Zhirov Hacker-Tank | -4/Proximity Caves Hacker-Sprinter | -4/Factory Hacker-Sprinter | -4/Upper Caves Hacker-Sprinter | -4/Upper Caves Hacker-Sprinter | -4/Warlord Hacker-Sprinter | -3/Proximity Caves Hacker-Sprinter | -3/Research Resources | -11 -10 -10 -9 -9 -7 -6 -6 -6 -6 -6 -5 -5 -5 -5 -5 -4 -4 -4 -4 -4 -3 -3 ----------- Run | Yrd Mat Min Mat Min Zio Pro Fac Low Low Dat Pro Fac Upp Upp Zhi Pro Fac Upp Upp War Pro Res Matter Collected 3001 | 200 80 10 402 23 60 52 110 19 71 . 65 252 129 233 . 324 59 21 71 358 10 452 Remotely . | . . . . . . . . . . . . . . . . . . . . . . . Salvage Created 4996 | . 277 30 891 . . 179 404 . 312 . 235 1493 45 128 . 44 . 217 . . . 741 Parts 243 | . 17 4 52 . . 10 15 . 13 . 9 66 1 4 . . . 5 . . . 47 Haulers Intercepted 3 | . . . 1 . . . 1 . . . . 1 . . . . . . . . . . Recyclers Shooed 3 | . 1 . 1 . . . . . . . . 1 . . . . . . . . . . Parts Field Recycled . | . . . . . . . . . . . . . . . . . . . . . . . Retrieved Matter . | . . . . . . . . . . . . . . . . . . . . . . . Parts Self-Destructed 39 | . . . . . . 10 . . 13 . 8 . 1 3 . . . 3 . . 1 . Prevented 3 | . . . . . . 1 . . . . . . 1 . . . . . . . 1 . Kills | -11 -10 -10 -9 -9 -7 -6 -6 -6 -6 -6 -5 -5 -5 -5 -5 -4 -4 -4 -4 -4 -3 -3 ------- Run | Yrd Mat Min Mat Min Zio Pro Fac Low Low Dat Pro Fac Upp Upp Zhi Pro Fac Upp Upp War Pro Res Combat Hostiles Destroyed 87 | . 5 . 20 . . 5 4 . 8 . 5 16 1 4 . 1 . 8 . . . 10 Melee 10 | . . . . . . . 4 . . . . 6 . . . . . . . . . . Guns 40 | . 5 . 12 . . 5 . . 5 . 3 . . 2 . . . . . . . 8 Cannons 23 | . . . 7 . . . . . 2 . 2 8 1 2 . 1 . . . . . . AOE 10 | . . . . . . . . . . . . . . . . . . 8 . . . 2 Classes Destroyed 16 | . 5 . 2 . . 1 1 . . . 1 5 . . . . . . . . . 1 Worker 18 | . 3 2 3 . . . 2 . . . . 2 . . . . . . . . . 6 Builder 6 | . . . . . . . 1 . . . . 3 . . . . . . . . . 2 Hauler 3 | . . . 1 . . . 1 . . . . 1 . . . . . . . . . . Recycler 5 | . 1 . . . . . . . . . . 3 . . . . . . . . . 1 Mechanic 1 | . . . . . . . . . . . . 1 . . . . . . . . . . Drone 1 | . . . . . . . . . . . 1 . . . . . . . . . . . Watcher 2 | . 1 . . . . . . . . . . 1 . . . . . . . . . . Swarmer 21 | . 3 . . . . 3 . . 4 . . 4 . . . . . 5 . . . 2 Saboteur 1 | . . . . . . . . . . . . 1 . . . . . . . . . . Grunt 43 | . 2 . 16 . . . 3 . 4 . 4 5 . 3 . . . 3 . . . 3 Brawler 1 | . . . . . . . . . . . . 1 . . . . . . . . . . Duelist 1 | . . . . . . . . . . . . 1 . . . . . . . . . . Sentry 9 | . . . 4 . . 1 1 . . . . 1 1 . . . . . . . . 1 Hunter 4 | . . . . . . . . . . . . 3 . . . 1 . . . . . . Programmer 5 | . . . . . . 1 . . . . . . . 1 . . . . . . . 3 Heavy 1 | . . . . . . . . . . . . . . . . . . . . . . 1 Best Kill Streak 12 | . 3 2 4 . . 3 3 . 3 . 2 4 1 1 . 1 . 8 . . . 12 Combat Bots Only 8 | . 3 . 4 . . 3 3 . 3 . 2 4 1 1 . 1 . 8 . . . 5 Max Kills in Single Turn 5 | . 1 1 1 . . 2 1 . 1 . 1 2 1 1 . 1 . 4 . . . 5 Gunslinging 1 | . . . . . . 1 . . . . . . . . . . . . . . . . Exploded 4 | . . . . . . . . . . . . . . . . . . 4 . . . 2 Melee 1 | . . . . . . . 1 . . . . 1 . . . . . . . . . . Uniques/NPCs Destroyed . | . . . . . . . . . . . . . . . . . . . . . . . Combat | -11 -10 -10 -9 -9 -7 -6 -6 -6 -6 -6 -5 -5 -5 -5 -5 -4 -4 -4 -4 -4 -3 -3 -------- Run | Yrd Mat Min Mat Min Zio Pro Fac Low Low Dat Pro Fac Upp Upp Zhi Pro Fac Upp Upp War Pro Res Hostile Shots Fired 1116 | . 26 . 93 . . 71 17 . 38 . 30 171 10 30 . 131 3 23 4 17 52 400 Missed 401 | . 6 . 24 . . 27 8 . 8 . 7 39 2 10 . 45 2 9 3 12 42 157 Damage Taken 10903 | . 216 . 946 . . 565 73 . 509 . 437 2121 158 322 . 1207 13 241 23 126 189 3757 Core 2477 | . 35 . 237 . . 73 16 . 126 . 55 138 24 48 . 240 . 64 . 16 84 1321 Absorbed by Shields 1313 | . . . . . . . . . . . . 294 36 72 . 295 . . . . . 616 Ignored by Resistances 490 | . . . . . . . . . . . . . . . . . . . . . . 490 Core Remaining (%) 70 | 100 . 86 . . . 22 . . . . 76 . . . . 51 . . . . 85 . Volleys Fired 305 | . 26 2 75 . . 15 . . 15 . 14 33 5 19 . 25 . 7 . 2 . 67 Largest 3 | . 2 2 2 . . 2 . . 2 . 2 2 3 3 . 3 . 1 . 1 . 2 Hottest 293 | . 90 90 115 . . 108 . . 115 . 115 155 201 193 . 193 . 43 . 45 . 293 Shots Fired 525 | . 51 4 140 . . 29 . . 30 . 28 63 12 49 . 40 . 7 . 2 . 70 Gun 306 | . 51 4 105 . . 29 . . 15 . 14 . 5 18 . 9 . . . 2 . 54 Cannon 196 | . . . 35 . . . . . 15 . 14 63 7 31 . 31 . . . . . . Launcher 23 | . . . . . . . . . . . . . . . . . . 7 . . . 16 Special . | . . . . . . . . . . . . . . . . . . . . . . . Kinetic 176 | . . . 80 . . 14 . . . . . 9 6 31 . 31 . . . 1 . 4 Thermal 329 | . 51 4 60 . . 15 . . 30 . 28 54 6 18 . 9 . . . . . 54 Explosive 17 | . . . . . . . . . . . . . . . . . . 7 . . . 10 Electromagnetic . | . . . . . . . . . . . . . . . . . . . . . . . Entropic 3 | . . . . . . . . . . . . . . . . . . . . 1 . 2 Robot Hit Streak 24 | . 6 1 11 . . 9 . . 5 . 24 13 4 7 . 4 . 5 . . . 16 Robot Miss Streak 10 | . 5 1 4 . . 3 . . 2 . 10 4 2 5 . 5 . 2 . 2 . 2 Penetration Max . | . . . . . . . . . . . . . . . . . . . . . . . Secondary Targets 5 | . 1 . 3 . . 1 . . . . . . . . . . . . . . . . Max Gunslinging Chain 1 | . 1 . 1 . . 1 . . . . . . . . . . . . . . . . Capacitor 39 | . . . . . . . . . . . . . . . . . . . . . . 39 Shots Hit Robots 384 | . 27 2 98 . . 19 13 . 27 . 20 75 7 29 . 18 . 5 . . . 44 Core Hits 198 | . 13 2 36 . . 7 9 . 17 . 14 31 2 9 . 6 . 12 . . . 40 Critical Kills 6 | . . . . . . . . . 1 . . 2 . 1 . . . . . . . 2 Critical Parts Destroyed 3 | . . . . . . . . . . . . . . . . 1 . . . . . 2 Critical Strikes 31 | . 2 . 4 . . . 3 . 1 . 1 11 . 2 . 3 . . . . . 4 Burn 3 | . 2 . 1 . . . . . . . . . . . . . . . . . . . Meltdown 3 | . . . . . . . . . 1 . . 2 . . . . . . . . . . Destroy 5 | . . . . . . . . . . . . . . 1 . 1 . . . . . 3 Blast 8 | . . . 3 . . . . . . . . 2 . 1 . 2 . . . . . . Sever 11 | . . . . . . . 3 . . . 1 7 . . . . . . . . . . Detonate 1 | . . . . . . . . . . . . . . . . . . . . . . 1 Melee Attacks 72 | . . . . . . 1 14 1 11 . 3 42 . . . . . . . . . . Impact . | . . . . . . . . . . . . . . . . . . . . . . . Slashing 72 | . . . . . . 1 14 1 11 . 3 42 . . . . . . . . . . Piercing . | . . . . . . . . . . . . . . . . . . . . . . . Sneak Attacks 14 | . . . . . . . 5 . . . . 9 . . . . . . . . . . Combat Hostiles . | . . . . . . . . . . . . . . . . . . . . . . . Follow-up Attacks . | . . . . . . . . . . . . . . . . . . . . . . . Damage Inflicted 13699 | . 341 23 1554 . . 440 798 . 781 . 588 3409 195 881 . 495 . 1276 . . . 2918 Guns 4189 | . 341 23 1126 . . 440 . . 266 . 257 . 54 354 . 135 . . . . . 1193 Cannons 3289 | . . . 428 . . . . . 319 . 294 1220 141 527 . 360 . . . . . . Explosions 3102 | . . . . . . . . . . . . 101 . . . . . 1276 . . . 1725 Melee 3119 | . . . . . . . 798 . 196 . 37 2088 . . . . . . . . . . Ramming . | . . . . . . . . . . . . . . . . . . . . . . . Kinetic 2506 | . . . 970 . . 271 . . . . . 185 114 527 . 360 . . . . . 79 Thermal 5154 | . 341 23 584 . . 169 . . 585 . 551 1136 81 354 . 135 . . . . . 1195 Explosive 2847 | . . . . . . . . . . . . . . . . . . 1276 . . . 1571 Electromagnetic . | . . . . . . . . . . . . . . . . . . . . . . . Impact . | . . . . . . . . . . . . . . . . . . . . . . . Slashing 3119 | . . . . . . . 798 . 196 . 37 2088 . . . . . . . . . . Piercing . | . . . . . . . . . . . . . . . . . . . . . . . Entropic 73 | . . . . . . . . . . . . . . . . . . . . . . 73 Highest Corruption 6 | . . . . . . . . . . . . 6 6 6 6 6 . . . . . 5 Average Corruption 5 | . . . . . . . . . . . . 5 6 6 6 6 . . . . . 1 Corruption Purged . | . . . . . . . . . . . . . . . . . . . . . . . Corruption Blocked . | . . . . . . . . . . . . . . . . . . . . . . . Effects 61 | . . . . . . . . . . . . 7 18 14 4 11 . . . . . 7 Message Errors 15 | . . . . . . . . . . . . 2 7 2 2 2 . . . . . . Matter Fused 15 | . . . . . . . . . . . . 2 1 1 2 6 . . . . . 3 Heat Flow Errors 5 | . . . . . . . . . . . . . 2 2 . 1 . . . . . . Energy Discharges 8 | . . . . . . . . . . . . . 4 4 . . . . . . . . Parts Fused 1 | . . . . . . . . . . . . 1 . . . . . . . . . . Data Loss (minor) 8 | . . . . . . . . . . . . 1 3 1 . 2 . . . . . 1 Data Loss (major) 1 | . . . . . . . . . . . . . . 1 . . . . . . . . Misfires 4 | . . . . . . . . . . . . 1 1 1 . . . . . . . 1 Alerts 2 | . . . . . . . . . . . . . . 1 . . . . . . . 1 Weapon Failures 2 | . . . . . . . . . . . . . . 1 . . . . . . . 1 Overload Shots . | . . . . . . . . . . . . . . . . . . . . . . . Overflow Damage 385 | . . . . . . . 75 . 5 . . 220 . . . . . 72 . . . 13 Projectiles 20 | . . . . . . . . . 5 . . 15 . . . . . . . . . . Explosions 85 | . . . . . . . . . . . . . . . . . . 72 . . . 13 Melee 280 | . . . . . . . 75 . . . . 205 . . . . . . . . . . Knockbacks 17 | . . . 4 . . . . . . . . 2 . 5 . 6 . . . . . . Impact . | . . . . . . . . . . . . . . . . . . . . . . . Kinetic 17 | . . . 4 . . . . . . . . 2 . 5 . 6 . . . . . . Secondary . | . . . . . . . . . . . . . . . . . . . . . . . Self-Inflicted Damage . | . . . . . . . . . . . . . . . . . . . . . . . Shots . | . . . . . . . . . . . . . . . . . . . . . . . Rammed . | . . . . . . . . . . . . . . . . . . . . . . . Targets Rammed . | . . . . . . . . . . . . . . . . . . . . . . . Kicked . | . . . . . . . . . . . . . . . . . . . . . . . Crushed . | . . . . . . . . . . . . . . . . . . . . . . . Highest Temperature 354 | . 192 44 300 . . 147 . . 240 . 314 207 137 221 . 239 . . . . . 354 Average Temperature 86 | . 64 23 91 . . 55 . . 72 . 102 45 46 92 . 131 . . . . . 111 Received Heat Transfer 1906 | . 66 . 501 . . 24 21 . 114 . 237 337 28 78 . . . 21 9 9 9 452 Effects 4 | . . . 1 . . . . . . . . . . . . . . . . . . 3 Energy Bleed 1 | . . . . . . . . . . . . . . . . . . . . . . 1 Interference 3 | . . . 1 . . . . . . . . . . . . . . . . . . 2 Siege Activations . | . . . . . . . . . . . . . . . . . . . . . . . Robots Corrupted . | . . . . . . . . . . . . . . . . . . . . . . . Combat Hostiles . | . . . . . . . . . . . . . . . . . . . . . . . Parts Fried . | . . . . . . . . . . . . . . . . . . . . . . . Impact Corruptions . | . . . . . . . . . . . . . . . . . . . . . . . Robots Melted 4 | . . . 1 . . . . . 1 . . 2 . . . . . . . . . . Combat Hostiles 4 | . . . 1 . . . . . 1 . . 2 . . . . . . . . . . Parts Melted 12 | . 2 . 2 . . . . . 1 . 2 2 . . . . . . . . . 3 Heat Transferred 8704 | . 1040 62 1591 . . 296 . . 1100 . 1025 1349 111 444 . 185 . . . . . 1501 Parts Sabotaged . | . . . . . . . . . . . . . . . . . . . . . . . Parts Stolen . | . . . . . . . . . . . . . . . . . . . . . . . Parts Stripped . | . . . . . . . . . . . . . . . . . . . . . . . Power Chain Reactions . | . . . . . . . . . . . . . . . . . . . . . . . Alert | -11 -10 -10 -9 -9 -7 -6 -6 -6 -6 -6 -5 -5 -5 -5 -5 -4 -4 -4 -4 -4 -3 -3 ------- Run | Yrd Mat Min Mat Min Zio Pro Fac Low Low Dat Pro Fac Upp Upp Zhi Pro Fac Upp Upp War Pro Res Peak Influence 961 | . 130 32 420 163 . . 133 . . . . 745 . . . . 727 . . . . 961 Initial 656 | . . 22 12 163 . . 9 . . . . 484 . . . . 656 . . . . 63 Average 320 | . 40 31 226 163 . . 45 . . . . 583 . . . . 669 . . . . 437 Maximum Alert Level 3 | . . . 2 . . . . . . . . 3 . . . . 3 . . . . 3 Low Security (%) 46 | 100 100 100 38 100 . . 100 . . . . . . . . . . . . . . 35 Level 1 10 | . . . 47 . . . . . . . . . . . . . . . . . . 10 Level 2 35 | . . . 14 . . . . . . . . 90 . . . . 86 . . . . 30 Level 3 7 | . . . . . . . . . . . . 9 . . . . 13 . . . . 23 Level 4 . | . . . . . . . . . . . . . . . . . . . . . . . Level 5 . | . . . . . . . . . . . . . . . . . . . . . . . High Security . | . . . . . . . . . . . . . . . . . . . . . . . Max Security . | . . . . . . . . . . . . . . . . . . . . . . . Squads Dispatched 22 | . 2 . 3 . . . 1 . . . . 2 . . . . 1 . . . . 13 Investigation 6 | . . . 1 . . . 1 . . . . . . . . . 1 . . . . 3 Extermination 1 | . . . . . . . . . . . . . . . . . . . . . . 1 Reinforcement 12 | . 2 . 2 . . . . . . . . 1 . . . . . . . . . 7 Assault 1 | . . . . . . . . . . . . 1 . . . . . . . . . . Garrison 2 | . . . . . . . . . . . . . . . . . . . . . . 2 Intercept . | . . . . . . . . . . . . . . . . . . . . . . . Searches Triggered 2 | . . . . . . . . . . . . 1 . . . . . . . . . 1 Construction Impeded 2 | . . . . . . . . . . . . . . . . . . . . . . 2 Haulers Reinforced 1 | . . . . . . . . . . . . . . . . . . . . . . 1 Active Scanning Responses . | . . . . . . . . . . . . . . . . . . . . . . . Cargo Convoy Interrupts . | . . . . . . . . . . . . . . . . . . . . . . . Stealth | -11 -10 -10 -9 -9 -7 -6 -6 -6 -6 -6 -5 -5 -5 -5 -5 -4 -4 -4 -4 -4 -3 -3 --------- Run | Yrd Mat Min Mat Min Zio Pro Fac Low Low Dat Pro Fac Upp Upp Zhi Pro Fac Upp Upp War Pro Res Distress Signals 11 | . . . 1 . . . . . . . . 2 . . . 3 . . . . . 5 Communications Jammed 2 | . . . . . . . . . . . 2 . . . . . . . . . . . Distress Signals . | . . . . . . . . . . . . . . . . . . . . . . . Times Spotted 240 | . 8 . 30 . . 7 5 1 9 . 9 25 1 5 . 19 5 11 1 15 14 75 Peak Tracking Total 15 | . 3 . 6 . . 3 2 1 3 . 4 7 1 3 . 10 6 9 1 6 11 15 Tactical Retreats 32 | . . . 1 . . 2 1 . 1 . 1 5 . 1 . 3 . 1 . . 2 14 Traps | -11 -10 -10 -9 -9 -7 -6 -6 -6 -6 -6 -5 -5 -5 -5 -5 -4 -4 -4 -4 -4 -3 -3 ------- Run | Yrd Mat Min Mat Min Zio Pro Fac Low Low Dat Pro Fac Upp Upp Zhi Pro Fac Upp Upp War Pro Res Traps Triggered 2 | . 1 . 1 . . . . . . . . . . . . . . . . . . . Indirectly . | . . . . . . . . . . . . . . . . . . . . . . . Trap Hack Attempts . | . . . . . . . . . . . . . . . . . . . . . . . Triggered . | . . . . . . . . . . . . . . . . . . . . . . . Disarmed . | . . . . . . . . . . . . . . . . . . . . . . . Reprogrammed . | . . . . . . . . . . . . . . . . . . . . . . . Reused . | . . . . . . . . . . . . . . . . . . . . . . . Traps Extracted . | . . . . . . . . . . . . . . . . . . . . . . . Installed . | . . . . . . . . . . . . . . . . . . . . . . . Triggered 17 | . . . . . . 1 . . . . . . 1 . . . . . . 14 1 . Machines | -11 -10 -10 -9 -9 -7 -6 -6 -6 -6 -6 -5 -5 -5 -5 -5 -4 -4 -4 -4 -4 -3 -3 ---------- Run | Yrd Mat Min Mat Min Zio Pro Fac Low Low Dat Pro Fac Upp Upp Zhi Pro Fac Upp Upp War Pro Res Machines Disabled 10 | . . . . . . . . 1 . . . 8 . . . . . . . . . 1 Max in Single Turn 2 | . . . . . . . . 1 . . . 2 . . . . . . . . . 1 Garrison Access 3 | . . . . . . . 1 . . . . 2 . . . . . . . . . . Machines Repaired . | . . . . . . . . . . . . . . . . . . . . . . . Machines Dismantled . | . . . . . . . . . . . . . . . . . . . . . . . Machines Sabotaged . | . . . . . . . . . . . . . . . . . . . . . . . Overloaded Fab Kills . | . . . . . . . . . . . . . . . . . . . . . . . Hacking | -11 -10 -10 -9 -9 -7 -6 -6 -6 -6 -6 -5 -5 -5 -5 -5 -4 -4 -4 -4 -4 -3 -3 --------- Run | Yrd Mat Min Mat Min Zio Pro Fac Low Low Dat Pro Fac Upp Upp Zhi Pro Fac Upp Upp War Pro Res Machines Accessed 45 | . 3 . 4 . . . 5 . 2 4 . 6 . . 5 . 2 . . 6 . 8 Terminals 23 | . 3 . 4 . . . 3 . 1 . . 5 . . . . 2 . . . . 5 Fabricators 3 | . . . . . . . 1 . . . . . . . . . . . . . . 2 Repair Stations . | . . . . . . . . . . . . . . . . . . . . . . . Recycling Units . | . . . . . . . . . . . . . . . . . . . . . . . Scanalyzers . | . . . . . . . . . . . . . . . . . . . . . . . Garrison Access 3 | . . . . . . . 1 . . . . 1 . . . . . . . . . 1 Total Hacks 143 | . 9 . 12 . . . 13 . 4 29 . 18 . . 17 . 7 . . 14 . 20 Successful 111 | . 6 . 9 . . . 12 . 4 29 . 9 . . 17 . 3 . . 14 . 8 Failed 31 | . 2 . 3 . . . 1 . . . . 9 . . . . 4 . . . . 12 Catastrophic 3 | . . . . . . . . . . . . . . . . . 1 . . . . 2 Database Lockouts 1 | . 1 . . . . . . . . . . . . . . . . . . . . . Manual 22 | . 3 . 6 . . . 2 . . . . 1 . . . . 1 . . 1 . 8 Terminals 67 | . 9 . 12 . . . 9 . 1 . . 17 . . . . 7 . . . . 12 Fabricators 7 | . . . . . . . 3 . . . . . . . . . . . . . . 4 Repair Stations . | . . . . . . . . . . . . . . . . . . . . . . . Recycling Units . | . . . . . . . . . . . . . . . . . . . . . . . Scanalyzers . | . . . . . . . . . . . . . . . . . . . . . . . Garrison Access 6 | . . . . . . . 1 . . . . 1 . . . . . . . . . 4 Terminal Hacks 94 | . 5 . 6 . . . 7 . 4 29 . 7 . . 17 . 2 . . 14 . 3 Record 37 | . . . . . . . . . 4 11 . . . . 6 . 2 . . 13 . 1 Part Schematic 14 | . . . . . . . 1 . . 10 . . . . 3 . . . . . . . Robot Schematic 6 | . . . . . . . 1 . . 5 . . . . . . . . . . . . Robot Analysis 7 | . 1 . 1 . . . . . . . . 1 . . 4 . . . . . . . Prototype ID Bank 14 | . 2 . 3 . . . . . . 3 . 2 . . 4 . . . . . . . Open Door 1 | . . . . . . . . . . . . . . . . . . . . 1 . . Open DSF 2 | . . . . . . . . . . . . 1 . . . . . . . . . 1 Level Access Points 1 | . . . . . . . . . . . . 1 . . . . . . . . . . Branch Access Points 2 | . . . 1 . . . 1 . . . . . . . . . . . . . . . Emergency Access Points 2 | . . . 1 . . . . . . . . . . . . . . . . . . 1 Terminal Index 1 | . 1 . . . . . . . . . . . . . . . . . . . . . Garrison Index 1 | . . . . . . . . . . . . 1 . . . . . . . . . . Unreport Threat 1 | . 1 . . . . . . . . . . . . . . . . . . . . . Locate Traps 3 | . . . . . . . 3 . . . . . . . . . . . . . . . Zone Layout 2 | . . . . . . . 1 . . . . 1 . . . . . . . . . . Fabricator Hacks 4 | . . . . . . . 3 . . . . . . . . . . . . . . 1 Network Status 2 | . . . . . . . 1 . . . . . . . . . . . . . . 1 Load Schematic 1 | . . . . . . . 1 . . . . . . . . . . . . . . . Build 1 | . . . . . . . 1 . . . . . . . . . . . . . . . Repair Station Hacks . | . . . . . . . . . . . . . . . . . . . . . . . Recycling Unit Hacks . | . . . . . . . . . . . . . . . . . . . . . . . Scanalyzer . | . . . . . . . . . . . . . . . . . . . . . . . Garrison Access Hacks 2 | . . . . . . . 1 . . . . 1 . . . . . . . . . . Seal Access 2 | . . . . . . . 1 . . . . 1 . . . . . . . . . . Unauthorized Hacks 11 | . 1 . 3 . . . 1 . . . . 1 . . . . 1 . . . . 4 Terminals 9 | . 1 . 3 . . . 1 . . . . 1 . . . . 1 . . . . 2 Assimilate 1 | . . . . . . . . . . . . . . . . . . . . . . 1 Botnet 8 | . 1 . 3 . . . 1 . . . . 1 . . . . 1 . . . . 1 Fabricators 2 | . . . . . . . . . . . . . . . . . . . . . . 2 Fabnet 2 | . . . . . . . . . . . . . . . . . . . . . . 2 Repair Stations . | . . . . . . . . . . . . . . . . . . . . . . . Recycling Units . | . . . . . . . . . . . . . . . . . . . . . . . Scanalyzers . | . . . . . . . . . . . . . . . . . . . . . . . Garrison Access . | . . . . . . . . . . . . . . . . . . . . . . . Data Cores Recovered . | . . . . . . . . . . . . . . . . . . . . . . . Used . | . . . . . . . . . . . . . . . . . . . . . . . Hacking Detections 22 | . 3 . 4 . . . 4 . 1 . . 3 . . . . 2 . . . . 5 Full Trace Events 6 | . . . 1 . . . 1 . . . . . . . . . 1 . . . . 3 Feedback Events 1 | . . . . . . . . . . . . . . . . . . . . . . 1 Corruption 1 | . . . . . . . . . . . . . . . . . . . . . . 1 Feedback Blocked . | . . . . . . . . . . . . . . . . . . . . . . . Robot Schematics Acquired 8 | . . . . . 2 . 1 . . 5 . . . . . . . . . . . . Robots Built . | . . . . . . . . . . . . . . . . . . . . . . . Authchips . | . . . . . . . . . . . . . . . . . . . . . . . Time . | . . . . . . . . . . . . . . . . . . . . . . . Total Robot Build Rating . | . . . . . . . . . . . . . . . . . . . . . . . Part Schematics Acquired 28 | . . . . . 14 . 1 . . 10 . . . . 3 . . . . . . . Parts Built 1 | . . . . . . . 1 . . . . . . . . . . . . . . . Authchips . | . . . . . . . . . . . . . . . . . . . . . . . Time 76 | . . . . . . . 76 . . . . . . . . . . . . . . . Total Part Build Rating 5 | . . . . . . . 5 . . . . . . . . . . . . . . . Parts Repaired . | . . . . . . . . . . . . . . . . . . . . . . . Time . | . . . . . . . . . . . . . . . . . . . . . . . Parts Recycled . | . . . . . . . . . . . . . . . . . . . . . . . Recycled Matter . | . . . . . . . . . . . . . . . . . . . . . . . Retrieved Matter . | . . . . . . . . . . . . . . . . . . . . . . . Retrieved Components . | . . . . . . . . . . . . . . . . . . . . . . . Parts Scanalyzed . | . . . . . . . . . . . . . . . . . . . . . . . Part Schematics Acquired . | . . . . . . . . . . . . . . . . . . . . . . . Parts Damaged . | . . . . . . . . . . . . . . . . . . . . . . . Bothacking | -11 -10 -10 -9 -9 -7 -6 -6 -6 -6 -6 -5 -5 -5 -5 -5 -4 -4 -4 -4 -4 -3 -3 ------------ Run | Yrd Mat Min Mat Min Zio Pro Fac Low Low Dat Pro Fac Upp Upp Zhi Pro Fac Upp Upp War Pro Res Used RIF Installer . | . . . . . . . . . . . . . . . . . . . . . . . Robots Hacked . | . . . . . . . . . . . . . . . . . . . . . . . Non-combat . | . . . . . . . . . . . . . . . . . . . . . . . Combat . | . . . . . . . . . . . . . . . . . . . . . . . Robot Hacks Applied . | . . . . . . . . . . . . . . . . . . . . . . . Relay Couplers Released 1 | . . . . . . . . . . . . 1 . . . . . . . . . . Machine Destruction 1 | . . . . . . . . . . . . 1 . . . . . . . . . . Fabnet Peak Effective % . | . . . . . . . . . . . . . . . . . . . . . . . Robots Rewired . | . . . . . . . . . . . . . . . . . . . . . . . Allies Hacked . | . . . . . . . . . . . . . . . . . . . . . . . Hacks Repelled . | . . . . . . . . . . . . . . . . . . . . . . . Allies | -11 -10 -10 -9 -9 -7 -6 -6 -6 -6 -6 -5 -5 -5 -5 -5 -4 -4 -4 -4 -4 -3 -3 -------- Run | Yrd Mat Min Mat Min Zio Pro Fac Low Low Dat Pro Fac Upp Upp Zhi Pro Fac Upp Upp War Pro Res Total Allies 1 | . . . . . . . . . . . . . . . . . . . . . . 1 Largest Group 1 | . . . . . . . . . . . . . . . . . . . . . . 1 Highest-Rated Group 10 | . . . . . . . . . . . . . . . . . . . . . . 10 Highest-Rated Ally 10 | . . . . . . . . . . . . . . . . . . . . . . 10 Total Orders . | . . . . . . . . . . . . . . . . . . . . . . . Ally Attacks . | . . . . . . . . . . . . . . . . . . . . . . . Total Damage . | . . . . . . . . . . . . . . . . . . . . . . . Kills . | . . . . . . . . . . . . . . . . . . . . . . . Allies Corrupted . | . . . . . . . . . . . . . . . . . . . . . . . Allies Melted . | . . . . . . . . . . . . . . . . . . . . . . . Intel | -11 -10 -10 -9 -9 -7 -6 -6 -6 -6 -6 -5 -5 -5 -5 -5 -4 -4 -4 -4 -4 -3 -3 ------- Run | Yrd Mat Min Mat Min Zio Pro Fac Low Low Dat Pro Fac Upp Upp Zhi Pro Fac Upp Upp War Pro Res Robot Analysis Total 7 | . 1 . 1 . . . . . . . . 1 . . 4 . . . . . . . Derelict Logs Recovered 10 | . . . . . . 1 . 2 1 . 2 . 2 2 . . . . . . . . Drone Launches . | . . . . . . . . . . . . . . . . . . . . . . . Drone Recoveries . | . . . . . . . . . . . . . . . . . . . . . . . Exploration | -11 -10 -10 -9 -9 -7 -6 -6 -6 -6 -6 -5 -5 -5 -5 -5 -4 -4 -4 -4 -4 -3 -3 ------------- Run | Yrd Mat Min Mat Min Zio Pro Fac Low Low Dat Pro Fac Upp Upp Zhi Pro Fac Upp Upp War Pro Res Turns Passed 9283 | 37 353 36 665 200 799 687 502 646 692 92 742 964 543 355 207 361 86 100 76 356 191 593 Spaces Moved 9427 | 31 286 32 394 145 725 583 305 584 493 79 421 490 442 232 159 571 239 294 251 1034 485 1152 Core 47 | 11 . . . . . . . . 9 . . . . . . 1 . . . . . 26 Treads . | . . . . . . . . . . . . . . . . . . . . . . . Legs 29 | . . . . . . . . . . . . . . . . . . . . . . 29 Wheels 5493 | 20 286 32 394 145 725 583 305 584 484 79 421 490 442 232 159 112 . . . . . . Hover . | . . . . . . . . . . . . . . . . . . . . . . . Flight 3858 | . . . . . . . . . . . . . . . . 458 239 294 251 1034 485 1097 Fastest Speed 26 | 50 90 90 90 95 95 95 110 110 110 115 115 100 115 120 95 32 27 27 27 26 26 26 Average Speed 79 | 75 90 90 98 95 107 109 114 110 123 115 141 143 115 120 107 51 27 27 27 26 26 35 Slowest Speed 800 | 90 95 90 115 95 110 110 125 110 800 115 180 180 115 120 125 400 29 27 27 29 26 180 Overloaded Moves . | . . . . . . . . . . . . . . . . . . . . . . . Propulsion Burnouts . | . . . . . . . . . . . . . . . . . . . . . . . Robots Hopped 25 | . . . . . . . . . . . . . . . . . . . . 1 1 23 Cave-ins Triggered . | . . . . . . . . . . . . . . . . . . . . . . . Teleports 1 | . . . . . . . . . . . . . . . . 1 . . . . . . Exploration Rate (%) 47 | 4 49 7 39 43 81 67 7 64 56 68 52 13 67 39 61 79 8 49 47 92 70 27 Regions Visited 22 Branch Regions 16 Pre-discovered Areas 11 | . . . . 1 1 . . 2 1 1 . . 1 . 3 . . . . 1 . . Known Exits Taken 13 | . . . 1 . . . 1 . . . 1 1 1 1 1 1 1 1 1 1 1 . Unknown Exits Taken 9 | 1 1 1 . 1 1 1 . 1 1 1 . . . . . . . . . . . . Scrap Searched 27 | . . . . . 2 2 . 1 3 . 3 . 3 4 . 2 . 1 4 . 2 . Spaces Dug 18 | . . . . . . 1 . . . . . 1 . . . . . . . . . 16 Terrain Destroyed 237 | . . . . . . 1 . . 5 . 5 31 . 14 . 15 . 42 . 1 . 123 Melee 1 | . . . . . . 1 . . . . . . . . . . . . . . . . Projectile 47 | . . . . . . . . . 5 . 5 4 . 14 . 15 . . . 1 . 3 AOE 189 | . . . . . . . . . . . . 27 . . . . . 42 . . . 120 Terrain Rammed . | . . . . . . . . . . . . . . . . . . . . . . . Walls Destroyed . | . . . . . . . . . . . . . . . . . . . . . . . Machines Disabled . | . . . . . . . . . . . . . . . . . . . . . . . Actions | -11 -10 -10 -9 -9 -7 -6 -6 -6 -6 -6 -5 -5 -5 -5 -5 -4 -4 -4 -4 -4 -3 -3 --------- Run | Yrd Mat Min Mat Min Zio Pro Fac Low Low Dat Pro Fac Upp Upp Zhi Pro Fac Upp Upp War Pro Res Total 10604 | 44 328 35 531 207 743 600 445 586 535 80 533 637 467 268 195 605 259 305 257 1116 547 1281 Wait 427 | . 3 . 15 63 2 . 90 2 2 2 82 9 12 6 3 . 7 . 1 41 63 24 Move 9357 | 30 285 31 393 144 724 582 304 583 492 78 420 489 441 231 158 570 238 293 250 1031 482 1108 Hop 23 | . . . . . . . . . . . . . . . . . . . . 1 1 21 Pick Up 115 | 8 9 1 16 . 3 1 13 . 2 . 3 24 3 3 5 . 3 1 . 4 . 16 Fast Attach 72 | . 1 . 6 . 5 . 1 . 3 . 3 6 2 3 11 . 4 1 3 13 1 9 Attach 67 | 6 1 1 4 . . 1 7 . . . 2 18 . 2 . 3 3 2 . 2 . 15 Detach 10 | . . . . . . . 1 . . . 1 1 . . . . 2 1 . 1 . 3 Swap 37 | . . . 7 . 1 . 5 . 4 . 3 6 1 1 3 2 . . 1 2 . 1 Drop 119 | . 3 . 15 . 8 . 10 . 6 . 2 9 3 3 15 5 2 . 2 19 . 17 Fire 305 | . 26 2 75 . . 15 . . 15 . 14 33 5 19 . 25 . 7 . 2 . 67 Melee 72 | . . . . . . 1 14 1 11 . 3 42 . . . . . . . . . . Ram . | . . . . . . . . . . . . . . . . . . . . . . . Kick . | . . . . . . . . . . . . . . . . . . . . . . . Crush . | . . . . . . . . . . . . . . . . . . . . . . . Escape Stasis . | . . . . . . . . . . . . . . . . . . . . . . . Rewire . | . . . . . . . . . . . . . . . . . . . . . . . Trap . | . . . . . . . . . . . . . . . . . . . . . . . Miscellaneous . | . . . . . . . . . . . . . . . . . . . . . . . Route ------- -11/Scrapyard -10/Materials (discovered 3 exits: *Mat x2 / [*Min]) -10/Mines -9/Materials (discovered 5 exits: [*Mat x2] / *Min / *Sto x2) -9/Mines -7/Zion -6/Proximity Caves -6/Factory (discovered 3 exits: Fac / *Low x2) -6/Lower Caves -6/Lower Caves -6/Data Miner -5/Proximity Caves -5/Factory (discovered 6 exits: Fac x4 / *Upp / Ext) -5/Upper Caves -5/Upper Caves -5/Zhirov -4/Proximity Caves -4/Factory -4/Upper Caves -4/Upper Caves (discovered 2 exits: *Res / *War) -4/Warlord -3/Proximity Caves -3/Research (discovered 1 exit: Arm) History --------- Turn | Location | Event 24 | -11/Scrapyard | Discovered new exit (range 15) 38 | -11/Scrapyard | Entered Materials 163 | -10/Materials | Central database locked down 166 | -10/Materials | Discovered new exit (range 3) 274 | -10/Materials | Discovered new exit (range 8) 315 | -10/Materials | Build established: Mutant 355 | -10/Materials | Discovered new exit (range 12) 391 | -10/Materials | Entered Mines 414 | -10/Mines | Discovered new exit (range 12) 427 | -10/Mines | Entered Materials 427 | -9/Materials | Evolved 2 slots: Utility x2 592 | -9/Materials | Discovered new exit (range 10) 607 | -9/Materials | Identified exit to Mines 607 | -9/Materials | Identified exit to Storage 852 | -9/Materials | Discovered new exit (range 16) 963 | -9/Materials | Core integrity fell below 50% 1092 | -9/Materials | Entered Mines 1112 | -9/Mines | Assembled infested the area 1176 | -9/Mines | Learned location of Storage (-9) 1282 | -9/Mines | A Derelict revealed a hidden shortcut to a safe place 1292 | -9/Mines | Entered Zion 1322 | -7/Zion | Found CR-A16's Pointy Stick 1846 | -7/Zion | Learned location of Data Miner (-6) 1926 | -7/Zion | Received a hallucinogenic algorithm 2080 | -7/Zion | Discovered new exit (range 11) 2091 | -7/Zion | Entered Proximity Caves 2117 | -6/Proximity Caves | Attracted the attention of an 0b10 checkpoint 2303 | -6/Proximity Caves | Learned location of 1 exit from Factory 2384 | -6/Proximity Caves | Spotted B-75 Beast 2740 | -6/Proximity Caves | Discovered new exit (range 15) 2778 | -6/Proximity Caves | Entered Factory 2778 | -6/Factory | Evolved 6 slots: Power x1, Utility x4, Weapon x1 2779 | -6/Factory | Identified exit to Factory 2970 | -6/Factory | Identified exit to Lower Caves 3064 | -6/Factory | Build established: Hacker-Mutant 3205 | -6/Factory | Fabricated Cld. Plasma Cannon (x1) 3280 | -6/Factory | Entered Lower Caves 3447 | -6/Lower Caves | Learned location of Extension (-5) 3733 | -6/Lower Caves | Encountered a Warlord checkpoint 3770 | -6/Lower Caves | Discovered new exit (range 15) 3922 | -6/Lower Caves | Attacked by a delusional Derelict stockpiling parts 3926 | -6/Lower Caves | Entered another Lower Caves area 4045 | -6/Lower Caves | Learned location of Armory (-3) 4051 | -6/Lower Caves | Learned 8 Factory zone layouts 4429 | -6/Lower Caves | Lost 3 parts (1p2n) 4563 | -6/Lower Caves | Discovered new exit (range 10) 4618 | -6/Lower Caves | Entered Data Miner 4618 | -6/Data Miner | Discovered new exit (range 7) 4640 | -6/Data Miner | Met Data Miner 4662 | -6/Data Miner | Learned location of Section 7 (-3) 4662 | -6/Data Miner | Acquired the access code to Warlord's prototype stash 4681 | -6/Data Miner | Received God Mode back door access code from Data Miner 4710 | -6/Data Miner | Entered Proximity Caves 4812 | -5/Proximity Caves | Spotter reported a threat 4853 | -5/Proximity Caves | Spotted B-75 Beast 4865 | -5/Proximity Caves | Spotter reported a threat 4930 | -5/Proximity Caves | Learned Factory stockpile data 5116 | -5/Proximity Caves | Spotter reported a threat 5131 | -5/Proximity Caves | Lost 3 parts (1p1n1u) 5452 | -5/Proximity Caves | Entered Factory 5452 | -5/Factory | Evolved 2 slots: Utility x2 5453 | -5/Factory | Identified exit to Factory 5453 | -5/Factory | Identified exit to Extension 5750 | -5/Factory | Identified exit to DSF 5752 | -5/Factory | Search patrols dispatched 5781 | -5/Factory | Spotted B-75 Beast 5894 | -5/Factory | Lost 4 parts (1p1n1u1w) 6035 | -5/Factory | Lost 7 parts (2p1n2u2w) 6210 | -5/Factory | Lost 3 parts (1n2u) 6333 | -5/Factory | Discovered new exit (range 14) 6414 | -5/Factory | Identified exit to Upper Caves 6416 | -5/Factory | Entered Upper Caves 6721 | -5/Upper Caves | Discovered new exit (range 4) 6723 | -5/Upper Caves | Attracted the attention of an 0b10 checkpoint 6754 | -5/Upper Caves | Identified exit to Upper Caves 6959 | -5/Upper Caves | Entered another Upper Caves area 7012 | -5/Upper Caves | Lost 3 parts (1n2u) 7141 | -5/Upper Caves | Learned Factory trap positions 7156 | -5/Upper Caves | Discovered new exit (range 9) 7164 | -5/Upper Caves | Identified exit to Zhirov 7285 | -5/Upper Caves | Build established: Scavenger-Tank 7314 | -5/Upper Caves | Entered Zhirov 7314 | -5/Zhirov | Discovered new exit (range 3) 7316 | -5/Zhirov | Identified exit to Proximity Caves 7335 | -5/Zhirov | Met Zhirov 7358 | -5/Zhirov | Learned location of Quarantine (-3) 7358 | -5/Zhirov | Learned location of Testing (-2) 7358 | -5/Zhirov | Learned location of Command (-1) 7372 | -5/Zhirov | Zhirov requested help retrieving the SGEMP Prototype 7391 | -5/Zhirov | Found Alien Artifact 7391 | -5/Zhirov | Identified Integrated Reactor 7391 | -5/Zhirov | Installed Integrated Reactor, increased core energy generation (+10) 7470 | -5/Zhirov | Found Alien Artifact 7521 | -5/Zhirov | Entered Proximity Caves 7594 | -4/Proximity Caves | Unaware initiated a cargo recovery operation 7595 | -4/Proximity Caves | Spotter reported a threat 7616 | -4/Proximity Caves | Spotter reported a threat 7669 | -4/Proximity Caves | Spotter reported a threat 7688 | -4/Proximity Caves | Spotter reported a threat 7727 | -4/Proximity Caves | Spotted Executioner 7729 | -4/Proximity Caves | Spotted Executioner 7731 | -4/Proximity Caves | Identified Transdimensional Reconstructor 7731 | -4/Proximity Caves | Warped through subspace 7756 | -4/Proximity Caves | Lost 10 parts (1p2n4u3w) 7800 | -4/Proximity Caves | Attracted the attention of an 0b10 checkpoint 7879 | -4/Proximity Caves | Discovered exit to Factory (range 8) 7882 | -4/Proximity Caves | Entered Factory 7882 | -4/Factory | Evolved 2 slots: Propulsion x2 7883 | -4/Factory | Loaded intel: 66 trap records 7956 | -4/Factory | Discovered new exit (range 8) 7967 | -4/Factory | Identified exit to Upper Caves 7968 | -4/Factory | Entered Upper Caves 8009 | -4/Upper Caves | Destroyed 8 combat bots 8039 | -4/Upper Caves | Build established: Hacker-Sprinter 8061 | -4/Upper Caves | Discovered new exit (range 12) 8063 | -4/Upper Caves | Identified exit to Upper Caves 8068 | -4/Upper Caves | Entered another Upper Caves area 8068 | -4/Upper Caves | Discovered new exit (range 11) 8069 | -4/Upper Caves | Identified exit to Warlord 8096 | -4/Upper Caves | Attracted the attention of an 0b10 checkpoint 8124 | -4/Upper Caves | Encountered a Warlord checkpoint 8144 | -4/Upper Caves | Entered Warlord 8152 | -4/Warlord | Discovered new exit (range 9) 8154 | -4/Warlord | Identified exit to Proximity Caves 8238 | -4/Warlord | Met Warlord 8241 | -4/Warlord | Opened Warlord's prototype stash 8252 | -4/Warlord | Found Prototype Device 8252 | -4/Warlord | Identified Exp. Phase Shifter 8263 | -4/Warlord | Warlord's base attacked by MAIN.C 8264 | -4/Warlord | Found Prototype Device 8265 | -4/Warlord | Identified Thermal Barrier 8271 | -4/Warlord | Found Prototype Reactor 8274 | -4/Warlord | Identified Vortex Chain Reactor 8288 | -4/Warlord | Learned 4 Armory zone layouts 8288 | -4/Warlord | Learned 4 Quarantine zone layouts 8288 | -4/Warlord | Learned Armory recycling unit intel 8288 | -4/Warlord | Learned Research repair station intel 8327 | -4/Warlord | Found Prototype Energy Cannon 8327 | -4/Warlord | Identified Vortex Cannon 8388 | -4/Warlord | Found Prototype Energy Gun 8388 | -4/Warlord | Identified Vortex Rail 8488 | -4/Warlord | Warlord forces counterattacked 8500 | -4/Warlord | Entered Proximity Caves 8686 | -3/Proximity Caves | Discovered new exit (range 2) 8687 | -3/Proximity Caves | Identified exit to Research 8691 | -3/Proximity Caves | Entered Research 8691 | -3/Research | Evolved 2 slots: Power x1, Utility x1 8692 | -3/Research | Identified exit to Armory 8693 | -3/Research | Loaded intel: 4 repair station locations 8720 | -3/Research | Identified exit to DSF 8900 | -3/Research | Found Quantum Capacitor 8917 | -3/Research | Lost 3 parts (3u) 9085 | -3/Research | Spotted B-86 Titan 9094 | -3/Research | Garrison activated, responded to threat 9120 | -3/Research | Spotted B-86 Titan 9209 | -3/Research | Found Vibroblade 9233 | -3/Research | Lost 7 parts (1p1n3u2w) 9240 | -3/Research | Search patrols dispatched 9264 | -3/Research | Core integrity fell below 50% 9276 | -3/Research | Core integrity fell below 20% 9284 | -3/Research | Destroyed by Y-72 Warden with Quantum Rifle Last Messages --------------- K-01 Serf collects debris. Slug penetrates S-43 Plague. S-43 Plague suffers critical hit (Blast). S-43 Plague knocked back. Imp. Armor Integrity Analyzer destroyed. Slug penetrates Wall. K-01 Serf collects debris. Penetrated by Slug. Slug penetrates H-77 Assassin. Slug penetrates A-15 Conveyor. A-15 Conveyor destroyed. W-44 Eye sends out distress signal. Penetrated by Slug. Slug penetrates Wall. U-05 Engineer builds a Wall. Penetrated by Slug. Slug penetrates Wall. Repair Station disabled. Backup Laser III tumbles out of repair station. Penetrated by Slug. Map ----- +----------------------------------------------------+ | ??????????????????????????????# ???????????# # | | ??????????????????????????????# ############ = | | ????????????????????????????### %% %| | | ????????????????????????????#"" ^ % ###### | | ????????????????????????????#" = ! # # # | | ????????????????????????????# F / ####### | | ????????????????????????????#"" #= % #???? # | | ?????????????????????? ##### !H #!! #???? # | | ??????????????????????? + !%! [=! #????## | | ??????????????????????? ?###### *! #[ % #?????# | | ?????????????????????###/####### #% #?????# | | ?????????????????????# " + ! #?????# | | ?????????????????????# w ######## #?????? | | ?????????????????????# " [#??????######?????? | | ?????????????????????# p"""#?????????????????? | | ?????????????????????# s R"#?????????????????? | | ?????????????????????# """#?????????????????? | | ?????????????????????# #?????????????????? | | ?????????????????????# #?????????????????? | | ?????????????????????#####;#########?????????????? | | ????????????????######??# + #???????????? | | ????????????????# !! # # #???????????? | | ????????????????# !! + + #???????????? | | ????????????????# !! = # #? #???????????? | | ????????????????######??# #?#########???????????? | | ????????????????????????#@ #?????????????????????? | | ????????????????????????# #?????????????????????? | | ????????????????????????+ #?????????????????????? | | ????????????????????????# #?????????????????????# | | ????????????????????????# #?????????????????????# | | ????????????????????????# #?????????????????????# | | ????????????????????????# +?????????????????????# | | ????????????????????????# #?????????????????????# | | ????????????????????????# #?????????????????????# | | ????????????????????????? #?????????????????????# | | ????????????????????????? ?????????????????????# | | ?????????????????????????Y ?????????????????????# | | ????????????????????????? ?????????????????????? | | ?????????????????????????! ?????????????????????? | | ?????????????????????????###?????????????????????? | | ?????????????????????????????????????????????????? | | ?????????????????????????????????????????????????? | | ?????????????????????????????????????????????????? | | ?????????????????????????????????????????????????? | | ?????????????????????????????????????????????????? | | ?????????????????????????????????????????????????? | | ?????????????????????????????????????????????????? | | ?????????????????????????????????????????????????? | | ?????????????????????????????????????????????????? | | ?????????????????????????????????????????????????? | +----------------------------------------------------+ Best States ------------- Heat Dissipation 71 Coolant Potential 50 Energy Generation 65 Energy Capacity 700 Matter Stores 300 Matter Capacity 300 Sight Range 16 Robot Scan Range 15 Terrain Scan Density 10 Jamming Range 12 Cloak Strength 3 Additional Mass Support 16 Corruption Block 8 Armor Coverage 825 Resistance: TH 50 Resistance: EM 15 Melee Speed Boost 20 Phase Shifting 20 Evasion (%) 84 Targeting Accuracy 6 Melee Accuracy 5 Core Analysis 6 Armor Integrity Analysis 40 Offensive Hacking 32 Defensive Hacking 14 Item Schematics ----------------- Imp. Heavy Armor Plating | -7/Zion | Archive Imp. Cooling System | -7/Zion | Archive Adv. Terrain Scan Processor | -7/Zion | Archive Power Amplifier | -7/Zion | Archive Mak. Sword | -7/Zion | Archive Adv. System Shield | -7/Zion | Archive Xenon Bombardment Thruster | -7/Zion | Archive Imp. Cryofiber Web | -7/Zion | Archive Gauss Cannon | -7/Zion | Archive Beamcaster | -7/Zion | Archive Imp. Melee Analysis Suite | -7/Zion | Archive Hyp. Gauss Rifle | -7/Zion | Archive Mak. Salvage Targeting Computer | -7/Zion | Archive Point Defense System | -7/Zion | Archive Cld. Plasma Cannon | -6/Factory | Hacked Combat Drone Bay | -6/Data Miner | Free Lgt. Regenerative Plating | -6/Data Miner | Free Enh. Flexi-carbon Leg | -6/Data Miner | Free Exp. Heat Sink | -6/Data Miner | Free Hvy. Proton Cannon | -6/Data Miner | Free Centrium Wheel | -6/Data Miner | Free Graphene Brace | -6/Data Miner | Free Matter Neutralizer | -6/Data Miner | Free Adv. Plasma Cannon | -6/Data Miner | Free Lrn. Terrain Scanner | -6/Data Miner | Free Assault Drone Bay | -5/Zhirov | Free Exp. Optical Array | -5/Zhirov | Free Imp. Arc Thrower | -5/Zhirov | Free Robot Schematics ------------------ R-06 Scavenger | -7/Zion | Archive T-07 Excavator | -7/Zion | Archive E-15 Imp | -6/Factory | Hacked L-41 Fighter | -6/Data Miner | Free G-50 Soldier | -6/Data Miner | Free S-27 Virus | -6/Data Miner | Free I-47 Archangel | -6/Data Miner | Free M-36 Artificer | -6/Data Miner | Free Fabricated ------------ Cld. Plasma Cannon | x1 | -6/Factory Alien Tech Used ----------------- Integrated Reactor Transdimensional Reconstructor Achievements -------------- None Challenges ------------ None Game ------ Seed InertialSpreadAccelerator Manual? 0 Play Time 02:47:38 Cumulative 103.4 hours Start 2024.05.15 @ 22:16:14 End 2024.05.16 @ 22:36:23 Sessions 11 Manual Loads 0 Difficulty Rogue Special Mode None Game No. 107 Rogue 98 Adventurer 9 Explorer 0 Win Type - Total 0 Types 0/0/0/0/0/0/0/0/0 Lore% 53 Gallery% 62 Achievement% 47 Wizard Run 0 Options --------- Layout 1 ASCII 0 Keyboard 0 Movement Numpad Keybinds 0 Fullscreen 1 Font 24/Smallcaps Map View 50x35 Zoom Use 0% Tactical HUD 0 Map Filters NONE Filters NONE Steam 1 RUN: 79ac42ec-a580-45d3-8939-ba5261f84c22